fUST/lending_fUST_20250713
["ID","MTS","AMOUNT","RATE_DAILY","PERIOD"]
[371756816,1752418263276,-460.0,0.00018082,2]
[371756817,1752418263286,-583.2,0.00018082,2]
[371756818,1752418263296,-451.24,0.00018082,2]
[371756819,1752418263306,-460.0,0.00018082,2]
[371756820,1752418263316,-636.27,0.00018082,2]
[371756821,1752418263325,-460.0,0.00018082,2]
[371756822,1752418263335,-460.0,0.00018082,2]
[371756823,1752418263345,-460.0,0.00018082,2]
[371756824,1752418263355,-2748.22,0.00018082,2]
[371756825,1752418263365,-460.0,0.00018082,2]
[371756826,1752418263375,-460.0,0.00018082,2]
[371756827,1752418263385,-889.53,0.00018082,2]
[371756828,1752418263395,-460.0,0.00018082,2]
[371756829,1752418263405,-460.0,0.00018082,2]
[371756830,1752418263415,-460.0,0.00018082,2]
[371756831,1752418263425,-460.0,0.00018082,2]
[371756832,1752418263435,-460.0,0.00018082,2]
[371756833,1752418263446,-788.96,0.00018082,2]
[371756834,1752418263456,-460.0,0.00018082,2]
[371756835,1752418263468,-700.91,0.00018082,2]
[371756836,1752418263479,-460.0,0.00018082,2]
[371756837,1752418263489,-460.0,0.00018082,2]
[371756838,1752418263499,-477.18,0.00018082,2]
[371756839,1752418263509,-460.0,0.00018082,2]
[371756840,1752418263519,-460.0,0.00018082,2]
[371756841,1752418263530,-151.0,0.00018082,2]
[371756842,1752418263540,-460.0,0.00018082,2]
[371756843,1752418263551,-460.0,0.00018082,2]
[371756844,1752418263561,-522.68,0.00018082,2]
[371756845,1752418263571,-3739.79,0.00018082,2]
[371756846,1752418263581,-460.0,0.00018082,2]
[371756847,1752418263591,-1104.11,0.00018082,2]
[371756848,1752418263601,-460.0,0.00018082,2]
[371756849,1752418263611,-460.0,0.00018082,2]
[371756850,1752418263621,-460.0,0.00018082,2]
[371756851,1752418263631,-460.0,0.00018082,2]
[371756852,1752418263641,-460.0,0.00018082,2]
[371756853,1752418263651,-460.0,0.00018082,2]
[371756854,1752418263662,-460.0,0.00018082,2]
[371756855,1752418263672,-638.59,0.00018082,2]
[371756856,1752418263683,-627.52,0.00018082,2]
[371756857,1752418263692,-460.0,0.00018082,2]
[371756858,1752418263702,-460.0,0.00018082,2]
[371756859,1752418263803,-460.0,0.00018082,2]
[371756860,1752418263814,-506.49,0.00018082,2]
[371756861,1752418263823,-567.94,0.00018082,2]
[371756862,1752418263833,-1699.88,0.00018082,2]
[371756863,1752418263843,-467.65174943,0.00018082,2]
[371756864,1752418263853,-1986.66,0.00018082,2]
[371756865,1752418263864,-460.0,0.00018082,2]
[371756866,1752418263874,-460.0,0.00018082,2]
[371756867,1752418263884,-477.26,0.00018082,2]
[371756868,1752418263894,-460.0,0.00018082,2]
[371756869,1752418263904,-556.22,0.00018082,2]
[371756870,1752418263914,-540.15,0.00018082,2]
[371756871,1752418263923,-460.0,0.00018082,2]
[371756872,1752418263934,-920.23,0.00018082,2]
[371756873,1752418263944,-511.11,0.00018082,2]
[371756874,1752418263954,-460.0,0.00018082,2]
[371756875,1752418263963,-586.06770959,0.00018082,2]
[371756876,1752418263976,-460.0,0.00018082,2]
[371756877,1752418263985,-1426.91,0.00018082,2]
[371756878,1752418263995,-460.0,0.00018082,2]
[371756879,1752418264004,-151.0,0.00018082,2]
[371756880,1752418264014,-517.62,0.00018082,2]
[371756881,1752418264025,-1093.81,0.00018082,2]
[371756882,1752418264035,-460.0,0.00018082,2]
[371756883,1752418264045,-2419.85,0.00018082,2]
[371756884,1752418264055,-479.39,0.00018082,2]
[371756885,1752418264065,-460.0,0.00018082,2]
[371756886,1752418264076,-460.0,0.00018082,2]
[371756887,1752418264086,-460.0,0.00018082,2]
[371756888,1752418264096,-655.11,0.00018082,2]
[371756889,1752418264106,-460.0,0.00018082,2]
[371756890,1752418264117,-460.0,0.00018082,2]
[371756891,1752418264127,-460.0,0.00018082,2]
[371756892,1752418264138,-260.018655,0.00018082,2]
[371756893,1752418264148,-671.19,0.00018082,2]
[371756894,1752418264157,-260.018655,0.00018082,2]
[371756895,1752418264168,-1365.06,0.00018082,2]
[371756896,1752418264178,-460.0,0.00018082,2]
[371756897,1752418264188,-1289.08,0.00018082,2]
[371756898,1752418264198,-164.907912,0.00018089,2]
[371756899,1752418264208,-2000.0,0.00018116,2]
[371756900,1752418264221,-164.907912,0.00018179,2]
[371756901,1752418264231,-160.0,0.00018189,2]
[371756902,1752418264242,-12598.31844336,0.00018189,2]
[371756903,1752418264252,-160.0,0.00018189,2]
[371756904,1752418264263,-207.4,0.0001819,2]
[371756905,1752418264273,-151.0,0.0001819,2]
[371756906,1752418264284,-151.0,0.0001819,2]
[371756907,1752418264294,-175.14516148,0.0001819,2]
[371756908,1752418264304,-160.0,0.00018196,2]
[371756909,1752418264313,-160.0,0.00018196,2]
[371756910,1752418264324,-160.0,0.00018196,2]
[371756911,1752418264333,-160.0,0.00018196,2]
[371756912,1752418264343,-838.53376533,0.00018196,2]
[371756913,1752418264352,-230.68503973,0.00018196,2]
[371756914,1752418264362,-160.0,0.00018196,2]
[371756915,1752418264372,-160.0,0.00018196,2]
[371756916,1752418264381,-160.0,0.00018196,2]
[371756917,1752418264390,-215.42595214,0.00018196,2]
[371756918,1752418264399,-164.907912,0.0001827,2]
[371756919,1752418264410,-1000.0,0.00018353,2]
[371756920,1752418264419,-239.03816,0.00018355,2]
[371756921,1752418264429,-239.03816,0.00018355,2]
[371756922,1752418264438,-560.77925,0.00018355,2]
[371756923,1752418264448,-560.77925,0.00018355,2]
[371756924,1752418264458,-233.109635,0.00018356,2]
[371756925,1752418264470,-233.109635,0.00018356,2]
[371756926,1752418264480,-460.0,0.00018356,2]
[371756927,1752418264489,-2464.484007,0.00018356,2]
[371756928,1752418264500,-2464.484007,0.00018356,2]
[371756929,1752418264509,-229.21368822,0.00018356,2]
[371756930,1752418264519,-460.0,0.00018356,2]
[371756931,1752418264530,-159.195964,0.00018356,2]
[371756932,1752418264540,-460.0,0.00018356,2]
[371756933,1752418264549,-716.02,0.00018356,2]
[371756934,1752418264559,-460.0,0.00018356,2]
[371756935,1752418264569,-460.0,0.00018356,2]
[371756936,1752418264579,-460.0,0.00018356,2]
[371756937,1752418264588,-460.0,0.00018356,2]
[371756938,1752418264598,-460.0,0.00018356,2]
[371756939,1752418264608,-460.0,0.00018356,2]
[371756940,1752418264618,-528.73,0.00018356,2]
[371756941,1752418264627,-460.0,0.00018356,2]
[371756942,1752418264637,-460.0,0.00018356,2]
[371756943,1752418264646,-460.0,0.00018356,2]
[371756944,1752418264655,-460.0,0.00018356,2]
[371756945,1752418264665,-406.77,0.00018356,2]
[371756946,1752418264675,-460.0,0.00018356,2]
[371756947,1752418264686,-151.0,0.00018356,2]
[371756948,1752418264697,-152.73007,0.00018356,2]
[371756949,1752418264707,-460.0,0.00018356,2]
[371756950,1752418264719,-460.0,0.00018356,2]
[371756951,1752418264729,-460.0,0.00018356,2]
[371756952,1752418264738,-460.0,0.00018356,2]
[371756953,1752418264748,-532.38,0.00018356,2]
[371756954,1752418264757,-276.390018,0.00018356,2]
[371756955,1752418264766,-662.85,0.00018356,2]
[371756956,1752418264776,-615.76,0.00018356,2]
[371756957,1752418264786,-276.390018,0.00018356,2]
[371756958,1752418264796,-460.0,0.00018356,2]
[371756959,1752418264806,-460.0,0.00018356,2]
[371756960,1752418264816,-583.2,0.00018356,2]
[371756961,1752418264825,-460.0,0.00018356,2]
[371756962,1752418264835,-636.27,0.00018356,2]
[371756963,1752418264844,-460.0,0.00018356,2]
[371756964,1752418264854,-464.75586545,0.00018356,2]
[371756965,1752418264864,-460.0,0.00018356,2]
[371756966,1752418264873,-2748.22,0.00018356,2]
[371756967,1752418264883,-460.0,0.00018356,2]
[371756968,1752418264893,-468.4414643,0.00018356,2]
[371756969,1752418264902,-889.53,0.00018356,2]
[371756970,1752418264911,-537.39267293,0.00018356,2]
[371756971,1752418264921,-460.0,0.00018356,2]
[371756972,1752418264931,-460.0,0.00018356,2]
[371756973,1752418264941,-460.0,0.00018356,2]
[371756974,1752418264951,-460.0,0.00018356,2]
[371756975,1752418264960,-788.96,0.00018356,2]
[371756976,1752418264972,-460.0,0.00018356,2]
[371756977,1752418264981,-700.91,0.00018356,2]
[371756978,1752418264991,-460.0,0.00018356,2]
[371756979,1752418265000,-460.0,0.00018356,2]
[371756980,1752418265009,-477.18,0.00018356,2]
[371756981,1752418265019,-460.0,0.00018356,2]
[371756982,1752418265029,-460.0,0.00018356,2]
[371756983,1752418265039,-460.0,0.00018356,2]
[371756984,1752418265048,-460.0,0.00018356,2]
[371756985,1752418265059,-522.68,0.00018356,2]
[371756986,1752418265069,-3739.79,0.00018356,2]
[371756987,1752418265079,-1104.11,0.00018356,2]
[371756988,1752418265088,-460.0,0.00018356,2]
[371756989,1752418265098,-601.35427108,0.00018356,2]
[371756990,1752418265107,-460.0,0.00018356,2]
[371756991,1752418265121,-463.00183291,0.00018356,2]
[371756992,1752418265131,-460.0,0.00018356,2]
[371756993,1752418265140,-460.0,0.00018356,2]
[371756994,1752418265149,-460.0,0.00018356,2]
[371756995,1752418265159,-638.59,0.00018356,2]
[371756996,1752418265168,-627.52,0.00018356,2]
[371756997,1752418265178,-460.0,0.00018356,2]
[371756998,1752418265187,-460.0,0.00018356,2]
[371756999,1752418265198,-460.0,0.00018356,2]
[371757000,1752418265209,-506.49,0.00018356,2]
[371757001,1752418265223,-567.94,0.00018356,2]
[371757002,1752418265232,-1699.88,0.00018356,2]
[371757003,1752418265242,-1986.66,0.00018356,2]
[371757004,1752418265253,-460.0,0.00018356,2]
[371757005,1752418265263,-460.0,0.00018356,2]
[371757006,1752418265272,-477.26,0.00018356,2]
[371757007,1752418265282,-460.0,0.00018356,2]
[371757008,1752418265291,-540.15,0.00018356,2]
[371757009,1752418265302,-556.22,0.00018356,2]
[371757010,1752418265313,-460.0,0.00018356,2]
[371757011,1752418265323,-920.23,0.00018356,2]
[371757012,1752418265333,-511.11,0.00018356,2]
[371757013,1752418265342,-460.0,0.00018356,2]
[371757014,1752418265352,-460.0,0.00018356,2]
[371757015,1752418265362,-1426.91,0.00018356,2]
[371757016,1752418265371,-460.0,0.00018356,2]
[371757017,1752418265379,-517.62,0.00018356,2]
[371757018,1752418265389,-1093.81,0.00018356,2]
[371757019,1752418265397,-460.0,0.00018356,2]
[371757020,1752418265406,-2419.85,0.00018356,2]
[371757021,1752418265416,-479.39,0.00018356,2]
[371757022,1752418265425,-460.0,0.00018356,2]
[371757023,1752418265435,-460.0,0.00018356,2]
[371757024,1752418265445,-655.11,0.00018356,2]
[371757025,1752418265454,-460.0,0.00018356,2]
[371757026,1752418265464,-460.0,0.00018356,2]
[371757027,1752418265478,-460.0,0.00018356,2]
[371757028,1752418265488,-671.19,0.00018356,2]
[371757029,1752418265498,-1365.06,0.00018356,2]
[371757030,1752418265508,-460.0,0.00018356,2]
[371757031,1752418265518,-1289.08,0.00018356,2]
[371757032,1752418265527,-1002.07498449,0.00018358,2]
[371757033,1752418265537,-500.0,0.00018358,2]
[371757034,1752418265546,-1000.0,0.00018358,2]
[371757035,1752418265556,-503.07991612,0.00018358,2]
[371757036,1752418265566,-500.0,0.00018358,2]
[371757037,1752418265575,-500.0,0.00018358,2]
[371757038,1752418265584,-1000.0,0.00018358,2]
[371757039,1752418265594,-500.52366226,0.00018358,2]
[371757040,1752418265603,-500.0,0.00018358,2]
[371757041,1752418265700,-164.907912,0.0001836,2]
[371757042,1752418265711,-1000.0,0.00018365,2]
[371757043,1752418265728,-500.0,0.00018365,2]
[371757044,1752418265738,-1000.0,0.00018365,2]
[371757045,1752418265749,-1000.0,0.00018371,2]
[371757046,1752418265759,-200.4,0.00018371,2]
[371757047,1752418265769,-806.48796736,0.00018416,2]
[371757048,1752418265780,-1476.77120229,0.00018416,2]
[371757049,1752418265790,-2000.0,0.00018416,2]
[371757050,1752418265801,-164.907912,0.00018451,2]
[371757051,1752418265811,-226.430392,0.0001863,2]
[371757052,1752418265821,-226.430392,0.0001863,2]
[371757053,1752418265831,-460.0,0.0001863,2]
[371757054,1752418265840,-151.0,0.0001863,2]
[371757055,1752418265850,-151.0,0.0001863,2]
[371757056,1752418265859,-460.0,0.0001863,2]
[371757057,1752418265869,-460.0,0.0001863,2]
[371757058,1752418265878,-716.02,0.0001863,2]
[371757059,1752418265888,-460.0,0.0001863,2]
[371757060,1752418265898,-460.0,0.0001863,2]
[371757061,1752418265907,-460.0,0.0001863,2]
[371757062,1752418265917,-460.0,0.0001863,2]
[371757063,1752418265926,-460.0,0.0001863,2]
[371757064,1752418265936,-528.73,0.0001863,2]
[371757065,1752418265945,-440.82494386,0.0001863,2]
[371757066,1752418265955,-460.0,0.0001863,2]
[371757067,1752418265965,-460.0,0.0001863,2]
[371757068,1752418265979,-460.0,0.0001863,2]
[371757069,1752418265989,-460.0,0.0001863,2]
[371757070,1752418265999,-460.0,0.0001863,2]
[371757071,1752418266008,-301.71403423,0.0001863,2]
[371757072,1752418266017,-460.0,0.0001863,2]
[371757073,1752418266027,-460.0,0.0001863,2]
[371757074,1752418266038,-532.38,0.0001863,2]
[371757075,1752418266048,-662.85,0.0001863,2]
[371757076,1752418266057,-615.76,0.0001863,2]
[371757077,1752418266067,-460.0,0.0001863,2]
[371757078,1752418266076,-460.0,0.0001863,2]
[371757079,1752418266086,-583.2,0.0001863,2]
[371757080,1752418266096,-636.27,0.0001863,2]
[371757081,1752418266112,-460.0,0.0001863,2]
[371757082,1752418266122,-460.0,0.0001863,2]
[371757083,1752418266132,-2748.22,0.0001863,2]
[371757084,1752418266142,-460.0,0.0001863,2]
[371757085,1752418266151,-889.53,0.0001863,2]
[371757086,1752418266161,-460.0,0.0001863,2]
[371757087,1752418266171,-460.0,0.0001863,2]
[371757088,1752418266180,-460.0,0.0001863,2]
[371757089,1752418266190,-460.0,0.0001863,2]
[371757090,1752418266200,-788.96,0.0001863,2]
[371757091,1752418266210,-460.0,0.0001863,2]
[371757092,1752418266228,-700.91,0.0001863,2]
[371757093,1752418266238,-460.0,0.0001863,2]
[371757094,1752418266247,-460.0,0.0001863,2]
[371757095,1752418266259,-151.0,0.0001863,2]
[371757096,1752418266269,-477.18,0.0001863,2]
[371757097,1752418266278,-460.0,0.0001863,2]
[371757098,1752418266288,-162.0749,0.0001863,2]
[371757099,1752418266299,-151.0,0.0001863,2]
[371757100,1752418266308,-460.0,0.0001863,2]
[371757101,1752418266318,-460.0,0.0001863,2]
[371757102,1752418266327,-522.68,0.0001863,2]
[371757103,1752418266337,-3739.79,0.0001863,2]
[371757104,1752418266347,-1104.11,0.0001863,2]
[371757105,1752418266356,-460.0,0.0001863,2]
[371757106,1752418266366,-460.0,0.0001863,2]
[371757107,1752418266376,-460.0,0.0001863,2]
[371757108,1752418266398,-451.22299151,0.0001863,2]
[371757109,1752418266410,-638.59,0.0001863,2]
[371757110,1752418266421,-460.0,0.0001863,2]
[371757111,1752418266431,-627.52,0.0001863,2]
[371757112,1752418266442,-460.0,0.0001863,2]
[371757113,1752418266453,-460.0,0.0001863,2]
[371757114,1752418266464,-506.49,0.0001863,2]
[371757115,1752418266684,-567.94,0.0001863,2]
[371757116,1752418266695,-1699.88,0.0001863,2]
[371757117,1752418266704,-1986.66,0.0001863,2]
[371757118,1752418266714,-460.0,0.0001863,2]
[371757119,1752418266727,-460.0,0.0001863,2]
[371757120,1752418266737,-477.26,0.0001863,2]
[371757121,1752418266747,-460.0,0.0001863,2]
[371757122,1752418266757,-540.15,0.0001863,2]
[371757123,1752418266767,-556.22,0.0001863,2]
[371757124,1752418266778,-460.0,0.0001863,2]
[371757125,1752418266788,-920.23,0.0001863,2]
[371757126,1752418266798,-511.11,0.0001863,2]
[371757127,1752418266809,-460.0,0.0001863,2]
[371757128,1752418266819,-500.44,0.0001863,2]
[371757129,1752418266828,-1426.91,0.0001863,2]
[371757130,1752418266837,-460.0,0.0001863,2]
[371757131,1752418266846,-517.62,0.0001863,2]
[371757132,1752418266857,-1093.81,0.0001863,2]
[371757133,1752418266866,-460.0,0.0001863,2]
[371757134,1752418266876,-2419.85,0.0001863,2]
[371757135,1752418266886,-479.39,0.0001863,2]
[371757136,1752418266896,-460.0,0.0001863,2]
[371757137,1752418266906,-460.0,0.0001863,2]
[371757138,1752418266916,-655.11,0.0001863,2]
[371757139,1752418266926,-460.0,0.0001863,2]
[371757140,1752418266937,-174.98397861,0.0001863,2]
[371757141,1752418266947,-460.0,0.0001863,2]
[371757142,1752418266957,-671.19,0.0001863,2]
[371757143,1752418266968,-1365.06,0.0001863,2]
[371757144,1752418266981,-460.0,0.0001863,2]
[371757145,1752418266992,-1289.08,0.0001863,2]
[371757146,1752418267002,-1836.55255679,0.00018664,2]
[371757147,1752418267012,-160.0,0.00018778,2]
[371757148,1752418267022,-2754.83870561,0.00018821,2]
[371757149,1752418267033,-239.03816,0.00018903,2]
[371757150,1752418267043,-239.03816,0.00018903,2]
[371757151,1752418267053,-560.77925,0.00018903,2]
[371757152,1752418267063,-560.77925,0.00018903,2]
[371757153,1752418267073,-460.0,0.00018904,2]
[371757154,1752418267083,-2464.484007,0.00018904,2]
[371757155,1752418267094,-2464.484007,0.00018904,2]
[371757156,1752418267104,-151.0,0.00018904,2]
[371757157,1752418267114,-151.0,0.00018904,2]
[371757158,1752418267124,-153.686131,0.00018904,2]
[371757159,1752418267133,-460.0,0.00018904,2]
[371757160,1752418267143,-460.0,0.00018904,2]
[371757161,1752418267153,-257.35,0.00018904,2]
[371757162,1752418267163,-716.02,0.00018904,2]
[371757163,1752418267172,-460.0,0.00018904,2]
[371757164,1752418267182,-460.0,0.00018904,2]
[371757165,1752418267191,-460.0,0.00018904,2]
[371757166,1752418267201,-359.08,0.00018904,2]
[371757167,1752418267210,-460.0,0.00018904,2]
[371757168,1752418267225,-528.73,0.00018904,2]
[371757169,1752418267234,-460.0,0.00018904,2]
[371757170,1752418267244,-460.0,0.00018904,2]
[371757171,1752418267253,-460.0,0.00018904,2]
[371757172,1752418267265,-460.0,0.00018904,2]
[371757173,1752418267275,-460.0,0.00018904,2]
[371757174,1752418267286,-151.0,0.00018904,2]
[371757175,1752418267297,-460.0,0.00018904,2]
[371757176,1752418267307,-532.38,0.00018904,2]
[371757177,1752418267317,-151.0,0.00018904,2]
[371757178,1752418267327,-662.85,0.00018904,2]
[371757179,1752418267336,-615.76,0.00018904,2]
[371757180,1752418267346,-281.19887932,0.00018904,2]
[371757181,1752418267355,-151.0,0.00018904,2]
[371757182,1752418267365,-460.0,0.00018904,2]
[371757183,1752418267374,-583.2,0.00018904,2]
[371757184,1752418267384,-636.27,0.00018904,2]
[371757185,1752418267393,-460.0,0.00018904,2]
[371757186,1752418267402,-460.0,0.00018904,2]
[371757187,1752418267411,-2748.22,0.00018904,2]
[371757188,1752418267420,-525.00570465,0.00018904,2]
[371757189,1752418267429,-889.53,0.00018904,2]
[371757190,1752418267439,-460.0,0.00018904,2]
[371757191,1752418267449,-460.0,0.00018904,2]
[371757192,1752418267458,-460.0,0.00018904,2]
[371757193,1752418267471,-460.0,0.00018904,2]
[371757194,1752418267480,-788.96,0.00018904,2]
[371757195,1752418267489,-460.0,0.00018904,2]
[371757196,1752418267499,-460.0,0.00018904,2]
[371757197,1752418267509,-700.91,0.00018904,2]
[371757198,1752418267519,-477.18,0.00018904,2]
[371757199,1752418267528,-460.0,0.00018904,2]
[371757200,1752418267538,-460.0,0.00018904,2]
[371757201,1752418267547,-522.68,0.00018904,2]
[371757202,1752418267557,-3739.79,0.00018904,2]
[371757203,1752418267567,-1104.11,0.00018904,2]
[371757204,1752418267576,-460.0,0.00018904,2]
[371757205,1752418267586,-460.0,0.00018904,2]
[371757206,1752418267595,-460.0,0.00018904,2]
[371757207,1752418267605,-638.59,0.00018904,2]
[371757208,1752418267615,-460.0,0.00018904,2]
[371757209,1752418267709,-627.52,0.00018904,2]
[371757210,1752418267722,-460.0,0.00018904,2]
[371757211,1752418267736,-506.49,0.00018904,2]
[371757212,1752418267745,-567.94,0.00018904,2]
[371757213,1752418267755,-1699.88,0.00018904,2]
[371757214,1752418267766,-460.0,0.00018904,2]
[371757215,1752418267775,-1986.66,0.00018904,2]
[371757216,1752418267785,-460.0,0.00018904,2]
[371757217,1752418267795,-560.77393681,0.00018904,2]
[371757218,1752418267804,-477.26,0.00018904,2]
[371757219,1752418267814,-460.0,0.00018904,2]
[371757220,1752418267824,-540.15,0.00018904,2]
[371757221,1752418267834,-556.22,0.00018904,2]
[371757222,1752418267844,-460.0,0.00018904,2]
[371757223,1752418267854,-920.23,0.00018904,2]
[371757224,1752418267864,-511.11,0.00018904,2]
[371757225,1752418267874,-460.0,0.00018904,2]
[371757226,1752418267883,-1426.91,0.00018904,2]
[371757227,1752418267893,-327.71838445,0.00018904,2]
[371757228,1752418267903,-151.0,0.00018904,2]
[371757229,1752418267913,-517.62,0.00018904,2]
[371757230,1752418267923,-1093.81,0.00018904,2]
[371757231,1752418267933,-460.0,0.00018904,2]
[371757232,1752418267942,-2419.85,0.00018904,2]
[371757233,1752418267952,-479.39,0.00018904,2]
[371757234,1752418267961,-460.0,0.00018904,2]
[371757235,1752418267974,-460.0,0.00018904,2]
[371757236,1752418267984,-655.11,0.00018904,2]
[371757237,1752418267995,-460.0,0.00018904,2]
[371757238,1752418268005,-460.0,0.00018904,2]
[371757239,1752418268014,-260.018655,0.00018904,2]
[371757240,1752418268024,-671.19,0.00018904,2]
[371757241,1752418268034,-260.018655,0.00018904,2]
[371757242,1752418268044,-1365.06,0.00018904,2]
[371757243,1752418268054,-460.0,0.00018904,2]
[371757244,1752418268064,-1289.08,0.00018904,2]
[371757245,1752418268074,-1000.0,0.00018906,2]
[371757246,1752418268083,-500.0,0.00018906,2]
[371757247,1752418268093,-1000.0,0.00018964,2]
[371757248,1752418268103,-233.109635,0.00019178,2]
[371757249,1752418268112,-233.109635,0.00019178,2]
[371757250,1752418268122,-198.38958192,0.00019178,2]
[371757251,1752418268131,-500.0,0.00019178,2]
[371757252,1752418268141,-202.16226156,0.00019178,2]
[371757253,1752418268151,-500.0,0.00019178,2]
[371757254,1752418268160,-151.0,0.00019178,2]
[371757255,1752418268170,-156.18941855,0.00019178,2]
[371757256,1752418268180,-151.54086367,0.00019178,2]
[371757257,1752418268189,-151.0,0.00019178,2]
[371757258,1752418268199,-460.0,0.00019178,2]
[371757259,1752418268209,-460.0,0.00019178,2]
[371757260,1752418268228,-716.02,0.00019178,2]
[371757261,1752418268241,-460.0,0.00019178,2]
[371757262,1752418268252,-460.0,0.00019178,2]
[371757263,1752418268262,-460.0,0.00019178,2]
[371757264,1752418268272,-460.0,0.00019178,2]
[371757265,1752418268283,-151.0,0.00019178,2]
[371757266,1752418268293,-528.73,0.00019178,2]
[371757267,1752418268302,-151.0,0.00019178,2]
[371757268,1752418268313,-460.0,0.00019178,2]
[371757269,1752418268323,-460.0,0.00019178,2]
[371757270,1752418268332,-460.0,0.00019178,2]
[371757271,1752418268342,-460.0,0.00019178,2]
[371757272,1752418268352,-460.0,0.00019178,2]
[371757273,1752418268362,-460.0,0.00019178,2]
[371757274,1752418268372,-532.38,0.00019178,2]
[371757275,1752418268381,-662.85,0.00019178,2]
[371757276,1752418268390,-615.76,0.00019178,2]
[371757277,1752418268399,-583.2,0.00019178,2]
[371757278,1752418268409,-460.0,0.00019178,2]
[371757279,1752418268419,-636.27,0.00019178,2]
[371757280,1752418268428,-460.0,0.00019178,2]
[371757281,1752418268437,-460.0,0.00019178,2]
[371757282,1752418268449,-2748.22,0.00019178,2]
[371757283,1752418268458,-889.53,0.00019178,2]
[371757284,1752418268471,-460.0,0.00019178,2]
[371757285,1752418268480,-460.0,0.00019178,2]
[371757286,1752418268489,-460.0,0.00019178,2]
[371757287,1752418268499,-788.96,0.00019178,2]
[371757288,1752418268509,-460.0,0.00019178,2]
[371757289,1752418268518,-397.73275503,0.00019178,2]
[371757290,1752418268528,-460.0,0.00019178,2]
[371757291,1752418268538,-477.18,0.00019178,2]
[371757292,1752418268548,-151.0,0.00019178,2]
[371757293,1752418268557,-700.91,0.00019178,2]
[371757294,1752418268567,-460.0,0.00019178,2]
[371757295,1752418268587,-460.0,0.00019178,2]
[371757296,1752418268603,-522.68,0.00019178,2]
[371757297,1752418268612,-3739.79,0.00019178,2]
[371757298,1752418268622,-1104.11,0.00019178,2]
[371757299,1752418268632,-460.0,0.00019178,2]
[371757300,1752418268641,-172.12,0.00019178,2]
[371757301,1752418268651,-460.0,0.00019178,2]
[371757302,1752418268661,-638.59,0.00019178,2]
[371757303,1752418268671,-460.0,0.00019178,2]
[371757304,1752418268680,-627.52,0.00019178,2]
[371757305,1752418268689,-460.0,0.00019178,2]
[371757306,1752418268700,-506.49,0.00019178,2]
[371757307,1752418268709,-567.94,0.00019178,2]
[371757308,1752418268721,-1699.88,0.00019178,2]
[371757309,1752418268731,-460.0,0.00019178,2]
[371757310,1752418268740,-1986.66,0.00019178,2]
[371757311,1752418268750,-244.73576238,0.00019178,2]
[371757312,1752418268760,-477.26,0.00019178,2]
[371757313,1752418268769,-460.0,0.00019178,2]
[371757314,1752418268779,-540.15,0.00019178,2]
[371757315,1752418268788,-556.22,0.00019178,2]